bitfinex-derivatives/quotes_ETHF0:USTF0_20250602
["timestamp","ask_amount","ask_price","bid_price","bid_amount"]
[1748837370631,11.18063571,2495.1,2495.0,0.5]
[1748837371132,11.39813968,2495.1,2495.0,0.5]
[1748837371334,6.18063571,2495.1,2495.0,0.5]
[1748837371635,6.39806741,2495.1,2495.0,0.5]
[1748837371825,6.18063571,2495.1,2495.0,0.5]
[1748837372331,6.39805407,2495.1,2495.0,0.5]
[1748837372532,6.39805675,2495.1,2495.0,0.5]
[1748837373228,6.18063571,2495.1,2495.0,0.5]
[1748837373430,8.79555616,2495.1,2495.0,0.5]
[1748837373826,27.18555616,2495.1,2495.0,0.5]
[1748837374023,27.18552504,2495.1,2495.0,0.5]
[1748837374324,27.18552484,2495.1,2495.0,0.5]
[1748837374519,27.18552453,2495.1,2495.0,0.5]
[1748837374734,27.18552838,2495.1,2495.0,0.5]
[1748837375435,27.18552572,2495.1,2495.0,0.5]
[1748837375624,26.96817342,2495.1,2495.0,0.5]
[1748837376130,27.1855321,2495.1,2495.0,0.5]
[1748837376330,26.96817342,2495.1,2495.0,0.5]
[1748837377330,27.18554931,2495.1,2495.0,0.5]
[1748837378036,27.18555124,2495.1,2495.0,0.5]
[1748837378334,26.96817342,2495.1,2495.0,0.5]
[1748837378536,27.18555137,2495.1,2495.0,0.5]
[1748837378834,24.78801366,2495.1,2495.0,0.5]
[1748837379035,27.40292629,2495.1,2495.0,0.5]
[1748837379431,27.40293296,2495.1,2495.0,0.5]
[1748837379733,25.00539876,2495.1,2495.0,0.5]
[1748837379935,27.40232406,2495.1,2495.0,0.5]
[1748837380135,27.18495162,2495.1,2495.0,0.5]
[1748837380338,27.40232441,2495.1,2495.0,0.5]
[1748837380531,24.78741391,2495.1,2495.0,0.5]
[1748837380839,25.0047819,2495.1,2495.0,0.5]
[1748837381231,6.61478548,2495.1,2495.0,0.5]
[1748837381430,25.0057844,2495.1,2495.0,0.5]
[1748837381926,24.78841391,2495.1,2495.0,0.5]
[1748837382137,27.4033092,2495.1,2495.0,0.5]
[1748837382338,27.60360994,2495.1,2495.0,0.5]
[1748837382637,27.60360994,2495.1,2494.4,5.9314]
[1748837382638,0.48086,2494.5,2494.4,5.9314]
[1748837382826,1.60133753,2494.5,2494.4,4.5943]
[1748837383032,18.392,2494.5,2494.4,6.34328]
[1748837383239,18.392,2494.5,2494.4,5.8624]
[1748837383240,18.87286,2494.5,2494.4,5.8624]
[1748837383541,0.48085,2494.6,2494.4,6.34328]
[1748837383728,18.87285,2494.6,2494.4,6.34328]
[1748837383933,0.48086,2494.5,2494.4,5.8624]
[1748837384239,0.48086,2494.6,2494.4,6.34328]
[1748837384538,1.60125233,2494.5,2494.4,6.3624]
[1748837384836,1.12039233,2494.5,2494.4,6.3624]
[1748837385037,1.60125233,2494.5,2494.4,6.3624]
[1748837385241,1.12039233,2494.5,2494.4,6.3624]
[1748837385940,1.60125233,2494.5,2494.4,6.3624]
[1748837388437,1.60125233,2494.5,2494.4,4.4]
[1748837389135,2.72119832,2494.5,2494.4,4.4]
[1748837389440,4.08079832,2494.5,2494.4,4.4]
[1748837389836,4.07192116,2494.5,2494.4,4.4]
[1748837390141,4.07192116,2494.5,2494.4,1.1922]
[1748837390538,4.07192116,2494.5,2494.4,0.5]
[1748837393238,21.10432116,2494.5,2494.4,0.5]
[1748837393544,19.98437517,2494.5,2494.4,0.5]
[1748837396145,21.35337517,2494.5,2494.4,0.5]
[1748837396535,22.02857517,2494.5,2494.4,0.5]
[1748837397343,22.24629461,2494.5,2494.4,0.5]
[1748837397544,0.48088,2494.4,2494.3,0.00600877]
[1748837397743,2.06759977,2494.4,2494.3,0.00600877]
[1748837397935,2.06788197,2494.4,2494.3,0.00600877]
[1748837398141,1.84988,2494.4,2494.3,0.00600877]
[1748837399045,2.06788295,2494.4,2494.3,0.00600877]
[1748837399443,2.06774809,2494.4,2494.3,0.00600877]
[1748837399836,1.84988,2494.4,2494.3,0.00600877]
[1748837400042,2.0677493,2494.4,2494.3,0.00600877]
[1748837400254,2.06775141,2494.4,2494.3,0.00600877]
[1748837400546,2.06775177,2494.4,2494.3,0.00600877]
[1748837400742,2.06775177,2494.4,2494.3,8.77e-06]
[1748837401047,22.86203266,2494.4,2494.3,8.77e-06]
[1748837401244,0.69866356,2494.4,2494.3,8.77e-06]
[1748837401444,0.21778356,2494.4,2494.3,8.77e-06]
[1748837401751,0.48088,2494.4,2494.3,1.33510877]
[1748837402047,1.59778714,2494.4,2494.3,1.83510877]
[1748837403944,1.11690714,2494.4,2494.3,5.04290877]
[1748837404251,1.59778714,2494.4,2494.3,5.04290877]
[1748837404949,1.59778714,2494.4,2494.3,1.83510877]
[1748837405746,1.11690714,2494.4,2494.3,1.83510877]
[1748837405947,1.11690714,2494.4,2494.3,5.04290877]
[1748837406140,1.59778714,2494.4,2494.3,1.83510877]
[1748837406752,1.11690714,2494.4,2494.3,1.83510877]
[1748837407454,1.59778714,2494.4,2494.3,1.83510877]
[1748837408853,1.79818714,2494.4,2494.3,1.83510877]
[1748837409446,1.31730714,2494.4,2494.3,5.52380877]
[1748837409651,0.2004,2494.4,2494.3,5.52380877]
[1748837410650,0.2004,2494.4,2494.3,10.52380877]
[1748837411259,0.2004,2494.4,2494.3,51.32380877]
[1748837412057,3.90593638,2495.1,2494.3,50.84290877]
[1748837412257,0.48078,2495.0,2494.7,0.48081]
[1748837412560,0.48078,2495.0,2494.8,1.9028]
[1748837412754,0.48078,2495.0,2494.9,1.2657]
[1748837415355,3.62547638,2495.1,2494.9,1.74648]
[1748837415658,4.10622638,2495.1,2494.9,1.944]
[1748837415858,0.48077,2495.0,2494.9,1.944]
[1748837416048,0.48079,2494.9,2494.8,0.6371]
[1748837416561,0.48083,2494.7,2494.6,3.2078]
[1748837416858,0.48086,2494.5,2494.4,0.6473]
[1748837417853,0.48085,2494.6,2494.4,0.6473]
[1748837418254,0.48086,2494.5,2494.4,0.6473]
[1748837418452,0.48085,2494.6,2494.4,0.6473]
[1748837419050,0.48085,2494.6,2494.4,1.12818]
[1748837419370,1.78763,2494.7,2494.4,1.12818]
[1748837419660,1.3068,2494.7,2494.4,1.12817]
[1748837419860,1.3068,2494.7,2494.5,0.48086]
[1748837420062,1.78763,2494.7,2494.5,0.48086]
[1748837420462,1.78763,2494.7,2494.4,2.52177]
[1748837421058,1.78763,2494.7,2494.5,0.48086]
[1748837421357,20.17763,2494.7,2494.5,0.48086]
[1748837421965,20.17763,2494.7,2494.4,2.52178]
[1748837422562,0.48085,2494.6,2494.4,2.52178]
[1748837422967,20.17764,2494.7,2494.4,2.52178]
[1748837423860,0.48085,2494.6,2494.4,2.52178]
[1748837424162,1.11026886,2494.5,2494.4,2.0409]
[1748837424564,1.77295,2494.6,2494.4,2.0409]
[1748837425062,1.59066039,2494.5,2494.4,0.6473]
[1748837425260,1.77295,2494.6,2494.4,1.12818]
[1748837425462,1.59070169,2494.5,2494.4,0.6473]
[1748837425664,2.88276626,2494.5,2494.4,0.6473]
[1748837425862,2.88276626,2494.5,2494.3,4.18870877]
[1748837426060,1.77296,2494.5,2494.3,4.18870877]
[1748837426862,1.2921,2494.5,2494.3,4.18870877]
[1748837427063,1.2921,2494.5,2494.4,0.48088]
[1748837427265,2.8829986,2494.5,2494.3,4.18870877]
[1748837427461,1.2921,2494.5,2494.4,0.48088]
[1748837427661,1.11007276,2494.5,2494.4,0.48088]
[1748837427860,1.11007276,2494.5,2494.4,2.30348]
[1748837428061,0.48085,2494.6,2494.4,2.30348]
[1748837428369,1.11025449,2494.5,2494.4,2.30348]
[1748837429767,1.59111449,2494.5,2494.4,2.30348]
[1748837429967,1.11025449,2494.5,2494.4,2.30348]
[1748837434776,1.11025449,2494.5,2494.4,0.98088]
[1748837435267,1.79151449,2494.5,2494.4,0.5]
[1748837435470,1.31065449,2494.5,2494.4,0.5]
[1748837435871,2.68645449,2494.5,2494.4,0.5]
[1748837436878,1.5762,2494.5,2494.4,0.5]
[1748837437176,2.68696428,2494.5,2494.4,0.98088]
[1748837441381,2.6876042,2494.5,2494.4,0.98088]
[1748837442480,2.6876042,2494.5,2494.4,0.48088]
[1748837442882,2.6876042,2494.5,2494.4,0.98088]
[1748837443188,1.5762,2494.5,2494.4,0.98088]
[1748837443388,2.68781205,2494.5,2494.4,0.98088]
[1748837444989,3.16867205,2494.5,2494.4,0.98088]
[1748837445286,2.68781205,2494.5,2494.4,0.98088]
[1748837445892,19.69949459,2494.5,2494.4,0.98088]
[1748837446089,19.69949459,2494.5,2494.4,2.35428]
[1748837446689,19.69949459,2494.5,2494.4,0.98088]
[1748837447187,21.08409459,2494.5,2494.4,0.98088]
[1748837447985,21.08409459,2494.5,2494.4,0.5]
[1748837448288,21.08409459,2494.5,2494.4,0.98088]
[1748837449591,1.31249459,2494.5,2494.4,4.18868]
[1748837449893,1.31249459,2494.5,2494.4,5.48268]
[1748837450089,1.31249459,2494.5,2494.4,6.16338]
[1748837450290,2.42522767,2494.5,2494.4,6.16338]
[1748837451294,1.31313308,2494.5,2494.4,6.16338]
[1748837453196,0.2004,2494.5,2494.4,6.16338]
[1748837453595,19.7285,2495.0,2494.5,1.20215]
[1748837453897,19.7285,2495.0,2494.9,0.48079]
[1748837454790,22.17125433,2495.0,2494.9,0.48079]
[1748837454992,21.9531941,2495.0,2494.9,0.48079]
[1748837455501,22.1712616,2495.0,2494.9,0.48079]
[1748837455794,22.17126149,2495.0,2494.9,0.48079]
[1748837456185,2.2246941,2495.0,2494.9,0.48079]
[1748837456487,2.2246941,2495.0,2494.8,3.2078]
[1748837456687,1.11256012,2495.0,2494.9,0.48079]
[1748837456885,3.61017254,2495.0,2494.9,0.48079]
[1748837457790,3.61017254,2495.0,2494.9,0.98079]
[1748837459201,2.49866012,2495.0,2494.9,0.98079]
[1748837459402,3.60958491,2495.0,2494.9,0.98079]
[1748837459794,20.60648491,2495.0,2494.9,0.98079]
[1748837460395,21.08725491,2495.0,2494.9,0.5]
[1748837460599,21.94308491,2495.0,2494.9,0.98079]
[1748837460796,22.42385491,2495.0,2494.9,0.98079]
[1748837461001,21.94308491,2495.0,2494.9,0.98079]
[1748837461199,22.42385491,2495.0,2494.9,0.5]
[1748837461707,22.42385491,2495.0,2494.9,0.98079]
[1748837461999,21.94308491,2495.0,2494.9,0.98079]
[1748837462189,21.94267278,2495.0,2494.9,0.98079]
[1748837462396,22.42344278,2495.0,2494.9,0.5]
[1748837463101,22.42344278,2495.0,2494.9,0.98079]
[1748837463300,21.94267278,2495.0,2494.9,0.98079]
[1748837463702,22.42344278,2495.0,2494.9,0.5]
[1748837464703,22.42344278,2495.0,2494.9,0.98079]
[1748837465597,22.42344278,2495.0,2494.9,0.5]
[1748837466599,20.83216012,2495.0,2494.9,0.5]
[1748837466899,21.31293012,2495.0,2494.9,0.5]
[1748837467699,22.42326075,2495.0,2494.9,0.5]
[1748837469205,3.55949075,2495.0,2494.9,0.98079]
[1748837469501,2.22289075,2495.0,2494.9,0.98079]
[1748837469897,2.22289075,2495.0,2494.9,2.30419]
[1748837470600,2.70366075,2495.0,2494.9,0.5]
[1748837470803,2.89223012,2495.0,2494.9,0.5]
[1748837471103,4.00257839,2495.0,2494.9,0.5]
[1748837472305,22.38157839,2495.0,2494.9,0.5]
[1748837472506,0.4808,2494.9,2494.7,0.48082]
[1748837472803,1.7602,2494.9,2494.7,0.48082]
[1748837473106,0.6555,2494.8,2494.7,0.48082]
[1748837473807,0.6555,2494.8,2494.7,0.98082]
[1748837474304,19.97234012,2495.0,2494.8,0.4808]
[1748837474504,1.11068525,2494.9,2494.8,1.8345]
[1748837474808,1.59147525,2494.9,2494.8,0.4808]
[1748837475009,1.59147525,2494.9,2494.7,0.98081]
[1748837475215,1.83189,2494.9,2494.7,0.98081]
[1748837475710,1.83189,2494.9,2494.8,0.48081]
[1748837476007,2.94253392,2494.9,2494.8,0.48081]
[1748837476706,2.94253392,2494.9,2494.7,0.5]
[1748837476906,1.3511,2494.9,2494.8,0.48081]
[1748837477208,1.11078342,2494.9,2494.8,0.48081]
[1748837478012,1.31118342,2494.9,2494.8,0.48081]
[1748837478713,1.79197342,2494.9,2494.8,0.48081]
[1748837479506,1.31118342,2494.9,2494.8,0.48081]
[1748837479706,1.31118342,2494.9,2494.8,3.68861]
[1748837480013,1.31118342,2494.9,2494.8,5.03011]
[1748837480413,1.79197342,2494.9,2494.8,5.03011]
[1748837480607,1.31118342,2494.9,2494.8,5.03011]
[1748837480807,0.2004,2494.9,2494.8,5.03011]
[1748837481008,0.68119,2494.9,2494.8,1.3415]
[1748837481810,0.68119,2494.9,2494.8,1.82231]
[1748837482214,0.2004,2494.9,2494.8,1.82231]
[1748837482609,1.79280256,2494.9,2494.8,1.82231]
[1748837483114,1.31201256,2494.9,2494.7,0.5]
[1748837483314,1.59242256,2494.8,2494.7,4.91483]
[1748837483515,1.59242256,2494.8,2494.7,4.434]
[1748837484215,1.11161256,2494.8,2494.7,4.91483]
[1748837486113,0.2004,2494.9,2494.8,0.48081]
[1748837486414,0.48081,2494.8,2494.7,4.91482]
[1748837486719,1.9555,2494.9,2494.7,4.91482]
[1748837486912,1.4747,2494.9,2494.7,4.91482]
[1748837487216,1.9555,2494.9,2494.7,4.91482]
[1748837487614,0.48081,2494.8,2494.7,3.934]
[1748837487910,0.48081,2494.8,2494.7,4.434]
[1748837488112,1.59319348,2494.8,2494.7,4.434]
[1748837488314,1.59319348,2494.8,2494.7,0.5]
[1748837488514,2.22379348,2494.8,2494.7,0.5]
[1748837489723,5.43159348,2494.8,2494.7,0.5]
[1748837490312,6.70799348,2494.8,2494.7,0.5]
[1748837490621,5.59561,2494.8,2494.7,0.5]
[1748837490922,14.52961,2494.8,2494.7,0.5]
[1748837491120,16.9309791,2494.8,2494.7,0.5]
[1748837491319,14.52961,2494.8,2494.7,0.5]
[1748837491727,15.64161937,2494.8,2494.7,0.5]
[1748837491920,0.48088,2494.4,2494.0,3.68875]
[1748837492220,19.48800937,2494.4,2494.0,3.2078]
[1748837492418,18.376,2494.4,2494.0,4.5531]
[1748837492724,18.375,2494.4,2494.3,0.48089877]
[1748837493222,18.375,2494.4,2494.3,8.77e-06]
[1748837493419,18.375,2494.4,2494.3,0.48090877]
[1748837493618,19.48700937,2494.4,2494.3,0.98090877]
[1748837494226,1.11200937,2494.4,2494.3,0.98090877]
[1748837494415,19.48800937,2494.4,2494.3,0.98090877]
[1748837494620,1.11200937,2494.4,2494.3,0.98090877]
[1748837494820,19.48800937,2494.4,2494.3,0.98090877]
[1748837495222,18.376,2494.4,2494.3,0.98090877]
[1748837495426,19.48608438,2494.4,2494.3,0.98090877]
[1748837495923,19.96696438,2494.4,2494.3,0.50000877]
[1748837496124,1.59096438,2494.4,2494.3,0.50000877]
[1748837496322,1.59096438,2494.4,2494.3,1.13250877]
[1748837496724,1.59096438,2494.4,2494.3,0.50000877]
[1748837496919,2.93446438,2494.4,2494.3,0.50000877]
[1748837500327,1.82438,2494.4,2494.3,0.50000877]
[1748837500733,2.93386306,2494.4,2494.3,0.50000877]
[1748837501425,3.13426306,2494.4,2494.3,0.50000877]
[1748837501828,2.65338306,2494.4,2494.3,0.98090877]
[1748837502029,3.13426306,2494.4,2494.3,0.50000877]
[1748837502527,18.5764,2494.4,2494.3,0.98090877]
[1748837502832,19.05728,2494.4,2494.3,0.50000877]
[1748837503534,20.16648082,2494.4,2494.3,0.50000877]
[1748837503723,19.05728,2494.4,2494.3,0.50000877]
[1748837503923,21.27571777,2494.4,2494.3,0.50000877]
[1748837504234,20.16652134,2494.4,2494.3,0.50000877]
[1748837505139,1.30964134,2494.4,2494.3,0.98090877]
[1748837505435,21.27569241,2494.4,2494.3,0.48090877]
[1748837505634,20.79481241,2494.4,2494.3,0.48090877]
[1748837505835,21.27569241,2494.4,2494.3,0.48090877]
[1748837506636,21.27569241,2494.4,2494.3,0.50000877]
[1748837506833,22.38485897,2494.4,2494.3,0.50000877]
[1748837507026,22.38485751,2494.4,2494.3,0.50000877]
[1748837507227,21.27569241,2494.4,2494.3,0.50000877]
[1748837507435,22.38488965,2494.4,2494.3,0.50000877]
[1748837507732,21.27569241,2494.4,2494.3,0.50000877]
[1748837508238,22.38493345,2494.4,2494.3,0.50000877]
[1748837508536,4.00893345,2494.4,2494.3,0.50000877]
[1748837508733,22.38492659,2494.4,2494.3,0.50000877]
[1748837509043,21.27569241,2494.4,2494.3,0.50000877]
[1748837509237,22.38492223,2494.4,2494.3,0.50000877]
[1748837509735,22.38499466,2494.4,2494.3,0.50000877]
[1748837510037,4.00899466,2494.4,2494.3,0.50000877]
[1748837510234,21.27569241,2494.4,2494.3,0.98090877]
[1748837510433,22.38509991,2494.4,2494.3,0.98090877]
[1748837510731,3.52821991,2494.4,2494.3,0.98090877]
[1748837510933,2.41881241,2494.4,2494.3,9.91290877]
[1748837511237,2.41881241,2494.4,2494.3,4.91290877]
[1748837512041,2.41881241,2494.4,2494.3,8.12070877]
[1748837514038,1.11256012,2495.0,2494.4,1.20222]
[1748837514233,1.11256012,2495.0,2494.9,0.48079]
[1748837516544,1.11256012,2495.0,2494.9,1.76449]
[1748837517947,1.11256012,2495.0,2494.9,2.26449]
[1748837519449,1.11256012,2495.0,2494.9,0.5]
[1748837519641,1.11256012,2495.0,2494.9,0.98079]
[1748837520543,1.59333012,2495.0,2494.9,0.5]
[1748837520742,2.96653012,2495.0,2494.9,0.5]
[1748837521850,2.48576012,2495.0,2494.9,0.98079]
[1748837522150,2.96653012,2495.0,2494.9,0.5]
[1748837528356,1.11256012,2495.0,2494.9,0.98079]
[1748837531060,4.73e-06,2495.0,2494.9,13.11659]
[1748837531252,4.73e-06,2495.1,2495.0,0.48077]
[1748837531559,8.77e-06,2495.6,2495.5,0.48067]
[1748837531756,2.39740229,2496.3,2496.0,0.48058]
[1748837531958,3.19618142,2496.2,2496.1,0.48056]
[1748837532256,3.19618142,2496.2,2496.1,4.35496]
[1748837532455,3.19618142,2496.2,2496.1,5.71376]
[1748837532853,3.19618142,2496.2,2496.1,6.21376]
[1748837533361,3.19618142,2496.2,2496.1,1.64716]
[1748837533657,4.58478142,2496.2,2496.1,1.64716]
[1748837535864,1.3886,2496.2,2496.1,1.64716]
[1748837539962,0.886,2496.3,2496.1,1.64715]
[1748837540151,2.208,2496.3,2496.1,1.64715]
[1748837540864,2.68853,2496.3,2496.1,1.1666]
[1748837541063,2.208,2496.3,2496.1,1.64714]
[1748837541365,0.2002,2496.3,2496.2,0.48054]
[1748837543366,0.2002,2496.3,2496.1,2.97405]
[1748837543969,0.2002,2496.3,2496.2,0.48054]
[1748837544659,0.2002,2496.3,2496.1,2.97404]
[1748837544859,0.2002,2496.3,2496.2,0.48054]
[1748837545764,0.2002,2496.3,2496.2,1.17404]
[1748837546459,0.2002,2496.3,2496.2,6.17404]
[1748837547060,0.2002,2496.3,2496.2,46.97404]
[1748837547867,0.2002,2496.3,2496.2,47.47404]
[1748837550462,0.2002,2496.3,2496.2,42.47404]
[1748837550662,0.2002,2496.3,2496.2,46.40004]
[1748837551569,0.2002,2496.3,2496.2,47.68664]
[1748837551764,0.2002,2496.3,2496.2,43.76064]
[1748837551970,0.2002,2496.3,2496.2,47.68664]
[1748837555472,1e-05,2496.3,2496.2,52.68664]
[1748837555674,1.3931,2497.2,2497.1,0.48034]
[1748837556183,3.2078,2497.5,2497.4,0.48028]
[1748837556473,1.3931,2497.6,2497.5,0.48026]
[1748837559571,1.3372,2497.7,2497.6,0.48024]
[1748837559880,0.00600877,2497.8,2497.7,0.48022]
[1748837561476,0.07670666,2497.8,2497.7,0.48022]
[1748837562381,0.00600877,2497.8,2497.7,0.48022]
[1748837562582,0.00600877,2497.8,2497.7,41.28022]
[1748837562884,0.00600877,2497.8,2497.7,41.78022]
[1748837563482,0.00600877,2497.8,2497.7,44.98802]
[1748837565184,0.00600877,2497.8,2497.7,3.7078]
[1748837565381,0.00600877,2497.8,2497.7,4.18802]
[1748837566086,0.00600877,2497.8,2497.7,3.7078]
[1748837566386,0.48620877,2497.8,2497.7,3.7078]
[1748837567389,0.00600877,2497.8,2497.7,3.7078]
[1748837567693,2.05830877,2497.8,2497.7,3.7078]
[1748837567988,2.53850877,2497.8,2497.7,3.7078]
[1748837568183,2.05830877,2497.8,2497.7,3.7078]
[1748837568981,2.05830877,2497.8,2497.7,0.5]
[1748837569181,2.05830877,2497.8,2497.7,3.7078]
[1748837570887,2.05830877,2497.8,2497.7,0.5]
[1748837571187,2.05830877,2497.8,2497.7,3.7078]
[1748837571880,2.05830877,2497.8,2497.7,4.18802]
[1748837572484,2.53850877,2497.8,2497.7,3.7078]
[1748837572887,2.05830877,2497.8,2497.7,4.18802]
[1748837575793,2.53850877,2497.8,2497.7,3.7078]
[1748837576492,2.05830877,2497.8,2497.7,3.7078]
[1748837577500,2.05830877,2497.8,2497.7,3.2078]
[1748837577890,2.05830877,2497.8,2497.7,3.7078]
[1748837578787,2.05830877,2497.8,2497.7,4.18802]
[1748837579499,2.05830877,2497.8,2497.7,0.98022]
[1748837580100,0.00600877,2497.8,2497.7,0.98022]
[1748837580306,0.00600877,2497.8,2497.7,5.98022]
[1748837580697,0.00600877,2497.8,2497.7,6.67792]
[1748837581199,0.00600877,2497.8,2497.7,8.07462]
[1748837581397,0.00600877,2497.8,2497.7,3.07462]
[1748837582494,0.00600877,2497.8,2497.7,0.5]
[1748837582902,1.96710877,2497.8,2497.7,0.5]
[1748837583101,2.44730877,2497.8,2497.7,0.5]
[1748837583302,1.96710877,2497.8,2497.7,0.5]
[1748837583502,1.96710877,2497.8,2497.7,0.98022]
[1748837583698,0.68180877,2497.8,2497.7,0.98022]
[1748837585304,0.00600877,2497.8,2497.7,0.98022]
[1748837585905,0.00600877,2497.8,2497.7,5.98022]
[1748837586105,0.00600877,2497.8,2497.7,7.31812]
[1748837587205,0.00600877,2497.8,2497.7,10.4901289]
[1748837587811,0.00600877,2497.8,2497.7,7.31812]
[1748837589808,0.00600877,2497.8,2497.7,6.81812]
[1748837590207,0.00600877,2497.8,2497.7,7.31812]
[1748837590804,0.07670666,2497.8,2497.7,7.31812]
[1748837592006,0.07670666,2497.8,2497.7,0.98022]
[1748837592918,1.28250877,2497.8,2497.7,0.98022]
[1748837593615,1.28250877,2497.8,2497.7,0.5]
[1748837594420,1.76270877,2497.8,2497.7,0.5]
[1748837594920,1.28250877,2497.8,2497.7,0.5]
[1748837596522,1.76270877,2497.8,2497.7,0.5]
[1748837597614,6.76270877,2497.8,2497.7,0.5]
[1748837597819,0.48028,2497.4,2497.3,3.92600877]
[1748837598022,1.9441,2497.7,2497.3,3.92600877]
[1748837598323,2.84556085,2497.6,2497.4,0.48027]
[1748837598519,1.29,2497.5,2497.4,0.48027]
[1748837598718,2.43916,2497.5,2497.3,4.40629877]
[1748837598919,1.9589,2497.5,2497.4,0.48028]
[1748837599115,0.6689,2497.5,2497.4,0.48028]
[1748837599821,0.6689,2497.5,2497.4,0.98028]
[1748837603234,0.6541,2497.7,2497.6,0.48024]
[1748837605526,0.6541,2497.7,2497.6,3.92]
[1748837605929,1.13432,2497.7,2497.6,3.92]
[1748837606625,0.6541,2497.7,2497.6,4.40024]
[1748837610333,1.13432,2497.7,2497.6,4.40024]
[1748837610628,1.13432,2497.7,2497.6,4.90024]
[1748837610829,1.13432,2497.7,2497.6,4.42]
[1748837612029,1.13432,2497.7,2497.6,0.5]
[1748837612231,2.20821255,2497.7,2497.6,0.5]
[1748837612425,2.20825034,2497.7,2497.6,0.5]
[1748837614635,1.13432,2497.7,2497.6,0.5]
[1748837614828,2.20827121,2497.7,2497.6,0.5]
[1748837615837,2.20827121,2497.7,2497.6,0.49291082]
[1748837616834,1.72805121,2497.7,2497.6,0.49291082]
[1748837617531,2.20827121,2497.7,2497.6,0.49291082]
[1748837619134,3.52848619,2497.7,2497.6,0.49291082]
[1748837620845,3.74532803,2497.7,2497.6,0.49291082]
[1748837621139,3.74533136,2497.7,2497.6,0.49291082]
[1748837621340,3.74532962,2497.7,2497.6,0.49291082]
[1748837621643,3.52848619,2497.7,2497.6,0.49291082]
[1748837621834,3.74533633,2497.7,2497.6,0.49291082]
[1748837622139,2.67097014,2497.7,2497.6,0.49291082]
[1748837622343,3.74631,2497.7,2497.6,0.49291082]
[1748837622536,3.74631,2497.7,2497.5,0.48026]
[1748837622841,1.07533986,2497.6,2497.5,0.98026]
[1748837623443,1.07590305,2497.6,2497.5,0.98026]
[1748837623838,1.55614305,2497.6,2497.5,0.98026]
[1748837624041,0.48024,2497.6,2497.5,0.98026]
[1748837624440,0.48024,2497.6,2497.5,0.5]
[1748837624641,2.02982348,2497.6,2497.5,0.5]
[1748837624835,2.02982431,2497.6,2497.5,0.5]
[1748837625031,1.3327,2497.6,2497.5,0.98026]
[1748837625232,1.81294,2497.6,2497.5,0.98026]
[1748837625439,2.02981231,2497.6,2497.5,0.98026]
[1748837625737,2.02981216,2497.6,2497.5,0.98026]
[1748837625937,2.02979087,2497.6,2497.5,0.98026]
[1748837626140,1.81294,2497.6,2497.5,0.98026]
[1748837626339,2.88929073,2497.6,2497.5,0.98026]
[1748837626940,2.88929073,2497.6,2497.5,0.5]
[1748837627243,1.07635073,2497.6,2497.5,0.98026]
[1748837627443,1.29319929,2497.6,2497.5,0.98026]
[1748837627740,0.21684856,2497.6,2497.5,0.98026]
[1748837627936,1.2933354,2497.6,2497.5,0.98026]
[1748837628137,1.2933467,2497.6,2497.5,0.98026]
[1748837628337,1.29334667,2497.6,2497.5,0.98026]
[1748837628643,1.29334685,2497.6,2497.5,0.98026]
[1748837628941,1.29334525,2497.6,2497.5,0.98026]
[1748837629137,1.07648684,2497.6,2497.5,0.98026]
[1748837629338,1.29334555,2497.6,2497.5,0.98026]
[1748837629537,1.29334028,2497.6,2497.5,0.98026]
[1748837629742,1.2933422,2497.6,2497.5,0.98026]
[1748837630131,1.07648684,2497.6,2497.5,0.98026]
[1748837630337,1.29334072,2497.6,2497.5,0.98026]
[1748837630537,1.29334017,2497.6,2497.5,0.98026]
[1748837630835,1.29334029,2497.6,2497.5,0.98026]
[1748837631044,1.07648684,2497.6,2497.5,0.98026]
[1748837631235,1.29334032,2497.6,2497.5,0.98026]
[1748837631637,0.00600877,2497.8,2497.7,0.48022]
[1748837632235,1.08225959,2497.8,2497.7,1.80392]
[1748837633338,0.58225959,2497.8,2497.7,6.80392]
[1748837634036,9.59e-06,2497.8,2497.7,6.80392]
[1748837634239,3.2078,2498.8,2498.7,0.48003]
[1748837634444,3.27849789,2498.8,2498.6,0.48004]
[1748837634935,3.27849789,2498.8,2498.6,1.79334]
[1748837635138,3.27849789,2498.8,2498.7,0.48003]
[1748837635443,3.2078,2498.8,2498.6,2.45484]
[1748837635939,0.48,2498.9,2498.6,2.45484]
[1748837636144,1.80529,2498.9,2498.6,5.66264]
[1748837636344,1.3253,2498.9,2498.7,0.48003]
[1748837636545,1.3253,2498.9,2498.7,1.3571]
[1748837636745,1.80529,2498.9,2498.7,1.83712]
[1748837636945,1.3253,2498.9,2498.7,1.83712]
[1748837637150,1.3253,2498.9,2498.7,1.83711]
[1748837637446,1.3253,2498.9,2498.8,0.48001]
[1748837637949,1.3253,2498.9,2498.7,1.83712]
[1748837638149,1.80529,2498.9,2498.7,1.83712]
[1748837638851,1.3253,2498.9,2498.7,1.83712]
[1748837639050,1.80529,2498.9,2498.7,1.83712]
[1748837639545,1.3253,2498.9,2498.7,1.83712]
[1748837640248,1.80529,2498.9,2498.7,1.3571]
[1748837641950,1.80529,2498.9,2498.7,1.83713]
[1748837642149,1.3253,2498.9,2498.8,0.48001]
[1748837642555,0.00600877,2499.0,2498.7,1.3571]
[1748837642746,0.48597877,2499.0,2498.8,0.48001]
[1748837642947,0.00600877,2499.0,2498.9,0.47999]
[1748837643843,0.00600877,2499.0,2498.8,0.47999]
[1748837644044,0.00600877,2499.0,2498.9,0.47999]
[1748837644445,0.00600877,2499.0,2498.6,3.87530877]
[1748837644648,0.48003,2498.7,2498.6,3.21380877]
[1748837645454,2.0126,2498.8,2498.6,3.69383877]
[1748837645455,2.49262,2498.8,2498.6,3.69383877]
[1748837645752,2.0126,2498.8,2498.7,0.48003]
[1748837646049,0.6439,2498.8,2498.7,0.48003]
[1748837646248,0.07069789,2498.9,2498.8,0.48001]
[1748837646747,0.00600877,2499.0,2498.9,0.47999]
[1748837649854,0.00600877,2499.0,2498.9,3.68779]
[1748837650055,0.00600877,2499.0,2498.9,4.34149]
[1748837651252,0.00600877,2499.0,2498.9,9.34149]